{"text_format":"1","workbook":"xlsx","n_sheets":3,"sheets":["Hinweise","Buchungen","Kontenplan"],"not_rendered":{"charts":0,"images":21,"macros":1,"external_links":0,"defined_names":0,"comments":1,"pivot_tables":0},"unopened":[],"bounds":{"document_bytes":16777216,"sheet_cells":100000,"rows_first":2000,"rows_last":500,"rows_between":2000,"halvings":0,"cell_chars":16384,"cell_head_chars":4096},"cells_cut":0,"cells_raw":0,"read":"whole","date_system":"1900"}

{"sheet":"Hinweise","index":0,"n_rows":27,"n_cols":1,"rows_kept":27,"cut":false,"hidden":false,"merged":[[0,0,0,7],[2,0,2,1]]}
["Zeitliche Abgrenzung 1 (Sonstige Forderungen, Sonstige Verbindlichkeiten)"]
[]
["Voraussetzungen"]
["Um den Geschäftsgang buchen zu können müssen Sie Kenntnisse über die folgenden Lehrninhalte haben:"]
["Erfolgskonten, Umsatzsteuer"]
["Zeitliche Abgrenzungen"]
["Sonstige Verbindlichkeiten"]
["Sonstige Forderungen"]
[]
["Vorgehensweise"]
["1. Wählen Sie die Tabelle \"Buchungen\"."]
[]
["2. Buchen Sie die Geschäftsvorfälle"]
["    entweder durch Direkteingabe in die entsprechenden Felder des Grundbuchs (Kontennummern und Beträge)"]
["    oder durch Aufruf von Buchungsfenstern. (Klicken Sie dazu jeweils auf die Schaltfläche \"Buchung\" und beenden"]
["    Sie die Eingabe  mit \"OK\".)"]
["    Die Kontennummern sind vierstellig anzugeben. (siehe Kontenplan). Bei zusammengesetzten Buchungssätzen"]
["    sind die Buchungen nach der Höhe der Beträge geordnet vorzunehmen. "]
[]
["3. Wenn Aufwendungen oder Erträge auf zwei Geschäftsjahre zu verteilen sind, können Sie die erforderlichen"]
["    Berechnungen in den grau hinterlegten Feldern durchführen."]
[]
["4. Sie können sich den Kontenplan mit Kontennummern jederzeit durch Klick auf den"]
["    entsprechenden Button anzeigen lassen."]
[]
["5. Die Richtigkeit Ihrer Buchungen wird bestätigt oder Sie werden auf"]
["    Fehler hingewiesen. (Ohne Buchung werden Fehler angezeigt.)"]

{"sheet":"Buchungen","index":1,"n_rows":124,"n_cols":7,"rows_kept":124,"cut":false,"hidden":false,"merged":[[32,2,33,2],[32,3,33,3],[28,0,29,0],[28,1,30,3],[28,4,30,4],[28,5,28,6],[29,5,29,6],[30,5,30,6],[26,0,27,0],[32,4,33,4],[32,5,33,5],[32,6,33,6],[32,0,33,0],[32,1,33,1],[26,1,27,1],[26,2,27,2],[26,3,27,3],[20,1,21,6],[26,4,27,4],[26,5,27,5],[26,6,27,6],[22,4,24,4],[22,5,22,6],[23,5,23,6],[24,5,24,6],[13,0,14,0],[13,1,15,3],[22,0,23,0],[22,1,24,3],[17,0,18,0],[17,1,18,1],[17,2,18,2],[17,3,18,3],[122,0,123,0],[5,1,6,6],[7,1,9,3],[7,4,9,4],[7,0,8,0],[13,4,15,4],[13,5,13,6],[14,5,14,6],[15,5,15,6],[17,4,18,4],[116,4,117,4],[116,5,117,5],[116,6,117,6],[118,0,119,0],[118,1,120,2],[118,3,119,3],[118,5,118,6],[119,5,119,6],[120,5,120,6],[116,0,117,0],[116,1,117,1],[116,2,117,2],[116,3,117,3],[110,0,111,0],[110,1,111,6],[112,0,113,0],[112,1,114,2],[112,3,114,3],[112,5,112,6],[113,5,113,6],[107,3,108,3],[114,5,114,6],[113,4,114,4],[105,5,105,6],[104,4,105,4],[107,4,108,4],[107,5,108,5],[107,6,108,6],[101,0,102,0],[101,1,102,1],[101,2,102,2],[107,0,108,0],[107,1,108,1],[107,2,108,2],[103,1,105,2],[103,0,104,0],[103,5,103,6],[104,5,104,6],[103,3,105,3],[101,3,102,3],[101,4,102,4],[101,5,102,5],[101,6,102,6],[95,0,96,0],[95,1,96,6],[97,0,98,0],[97,5,97,6],[98,5,98,6],[99,5,99,6],[97,1,99,2],[97,3,99,3],[98,4,99,4],[88,5,88,6],[89,5,89,6],[90,5,90,6],[92,0,93,0],[88,0,89,0],[88,1,90,2],[86,5,87,5],[86,6,87,6],[68,4,69,4],[8,5,8,6],[9,5,9,6],[11,4,12,4],[11,5,12,5],[11,6,12,6],[17,5,18,5],[17,6,18,6],[1,0,1,4],[2,0,2,4],[7,5,7,6],[20,0,21,0],[11,0,12,0],[11,1,12,1],[11,2,12,2],[11,3,12,3],[5,0,6,0],[35,0,36,0],[35,1,36,6],[37,0,38,0],[37,5,37,6],[38,5,38,6],[38,4,39,4],[39,5,39,6],[45,5,45,6],[41,0,42,0],[41,1,42,1],[41,2,42,2],[41,3,42,3],[41,5,42,5],[41,6,42,6],[43,0,44,0],[43,5,43,6],[44,5,44,6],[47,0,48,0],[86,0,87,0],[86,1,87,1],[86,2,87,2],[50,0,51,0],[52,0,53,0],[56,0,57,0],[56,1,57,1],[56,2,57,2],[71,1,72,1],[41,4,42,4],[86,3,87,3],[86,4,87,4],[37,1,39,2],[43,1,45,2],[37,3,39,3],[43,3,44,3],[50,1,51,6],[52,1,54,2],[52,3,54,3],[58,0,59,0],[58,1,60,2],[58,3,59,3],[52,5,52,6],[53,5,53,6],[54,5,54,6],[53,4,54,4],[59,5,59,6],[60,5,60,6],[68,5,68,6],[56,3,57,3],[56,4,57,4],[56,5,57,5],[56,6,57,6],[58,5,58,6],[71,3,72,3],[62,0,63,0],[65,0,66,0],[65,1,66,6],[67,0,68,0],[67,1,69,2],[67,3,69,3],[67,5,67,6],[71,4,72,4],[69,5,69,6],[71,5,72,5],[71,6,72,6],[73,0,74,0],[73,1,75,2],[73,3,74,3],[73,5,73,6],[74,5,74,6],[75,5,75,6],[71,0,72,0],[71,2,72,2],[77,0,78,0],[80,0,81,0],[80,1,81,6],[82,0,83,0],[82,1,84,3],[82,4,84,4],[82,5,82,6],[83,5,83,6],[84,5,84,6]]}
[]
["Übungen zur zeitlichen Agrenzung"]
["1. Sonstige Forderungen, Sonstige Verbindlichkeiten"]
[null,null,null,null,null,null,0.19]
[]
["Geschäfts- vorfall 1","Wir erhalten die Dezembermiete erst am 15. Januar des nächsten Geschäftsjahres bar, 550,00 €."]
[]
["31.12.","Buchung zum Jahresabschluss.",null,null,550,{"$f":"IF(AND(B12=\"2690\",E12=\"5400\"),\"Die Konten sind richtig!\",\"Mindestens ein Konto ist falsch!\")","v":"Mindestens ein Konto ist falsch!"}]
[null,null,null,null,null,{"$f":"IF(AND(D12=E8,G12=E8),\"Die Beträge sind richtig!\",\"Mindestens ein Betrag ist falsch!\")","v":"Mindestens ein Betrag ist falsch!"}]
[null,null,null,null,null,{"$f":"IF(AND(F8=\"Die Konten sind richtig!\",F9=\"Die Beträge sind richtig!\"),\"Alles richtig!\",\"Es sind noch Fehler vorhanden!\")","v":"Es sind noch Fehler vorhanden!"}]
[1,"Soll","Konto","€","Haben","Konto","€"]
["Buchungssatz","",{"$f":"IF(B12=\"\",\"\",VLOOKUP(B12,Kontenplan!$A$4:$B$21,2))","v":""},null,"",{"$f":"IF(E12=\"\",\"\",VLOOKUP(E12,Kontenplan!$A$4:$B$21,2))","v":""}]
[]
["15.01.","Buchung im neuen Geschäftsjahr.",null,null,550,{"$f":"IF(AND(B18=\"2880\",E18=\"2690\"),\"Die Konten sind richtig!\",\"Mindestens ein Konto ist falsch!\")","v":"Mindestens ein Konto ist falsch!"}]
[null,null,null,null,null,{"$f":"IF(AND(D18=E14,G18=E14),\"Die Beträge sind richtig!\",\"Mindestens ein Betrag ist falsch!\")","v":"Mindestens ein Betrag ist falsch!"}]
[null,null,null,null,null,{"$f":"IF(AND(F14=\"Die Konten sind richtig!\",F15=\"Die Beträge sind richtig!\"),\"Alles richtig!\",\"Es sind noch Fehler vorhanden!\")","v":"Es sind noch Fehler vorhanden!"}]
[2,"Soll","Konto","€","Haben","Konto","€"]
["Buchungssatz","",{"$f":"IF(B18=\"\",\"\",VLOOKUP(B18,Kontenplan!$A$4:$B$21,2))","v":""},null,"",{"$f":"IF(E18=\"\",\"\",VLOOKUP(E18,Kontenplan!$A$4:$B$21,2))","v":""}]
[]
[]
["Geschäfts- vorfall 2","Darlehenszinsen für das letzte Quartal werden von uns erst am 2.1. des nächsten Jahres überwiesen, 680,00 €"]
[]
["31.12.","Buchung zum Jahresabschluss.",null,null,680,{"$f":"IF(AND(B27=\"7510\",E27=\"4890\"),\"Die Konten sind richtig!\",\"Mindestens ein Konto ist falsch!\")","v":"Mindestens ein Konto ist falsch!"}]
[null,null,null,null,null,{"$f":"IF(AND(D27=E23,G27=E23),\"Die Beträge sind richtig!\",\"Mindestens ein Betrag ist falsch!\")","v":"Mindestens ein Betrag ist falsch!"}]
[null,null,null,null,null,{"$f":"IF(AND(F23=\"Die Konten sind richtig!\",F24=\"Die Beträge sind richtig!\"),\"Alles richtig!\",\"Es sind noch Fehler vorhanden!\")","v":"Es sind noch Fehler vorhanden!"}]
[3,"Soll","Konto","€","Haben","Konto","€"]
["Buchungssatz","",{"$f":"IF(B27=\"\",\"\",VLOOKUP(B27,Kontenplan!$A$4:$B$21,2))","v":""},null,"",{"$f":"IF(E27=\"\",\"\",VLOOKUP(E27,Kontenplan!$A$4:$B$21,2))","v":""}]
[]
["02.01.","Buchung im neuen Geschäftsjahr.",null,null,680,{"$f":"IF(AND(B33=\"4890\",E33=\"2800\"),\"Die Konten sind richtig!\",\"Mindestens ein Konto ist falsch!\")","v":"Mindestens ein Konto ist falsch!"}]
[null,null,null,null,null,{"$f":"IF(AND(D33=E29,G33=E29),\"Die Beträge sind richtig!\",\"Mindestens ein Betrag ist falsch!\")","v":"Mindestens ein Betrag ist falsch!"}]
[null,null,null,null,null,{"$f":"IF(AND(F29=\"Die Konten sind richtig!\",F30=\"Die Beträge sind richtig!\"),\"Alles richtig!\",\"Es sind noch Fehler vorhanden!\")","v":"Es sind noch Fehler vorhanden!"}]
[4,"Soll","Konto","€","Haben","Konto","€"]
["Buchungssatz","",{"$f":"IF(B33=\"\",\"\",VLOOKUP(B33,Kontenplan!$A$4:$B$21,2))","v":""},null,"",{"$f":"IF(E33=\"\",\"\",VLOOKUP(E33,Kontenplan!$A$4:$B$21,2))","v":""}]
[]
[]
["Geschäfts- vorfall 3","Die halbjährlich fälligen Hypothekenzinsen werden für September bis Februar werden am 1.3. des nächsten Jahres überwiesen, 624,00 €."]
[]
["31.12.","Buchung zum Jahresabschluss.",null,"Anteil alltes Geschäftsjahr","Berechnungen",{"$f":"IF(AND(B42=\"7510\",E42=\"4890\"),\"Die Konten sind richtig!\",\"Mindestens ein Konto ist falsch!\")","v":"Mindestens ein Konto ist falsch!"}]
[null,null,null,null,null,{"$f":"IF(AND(D42=416,G42=416),\"Die Beträge sind richtig!\",\"Mindestens ein Betrag ist falsch!\")","v":"Mindestens ein Betrag ist falsch!"}]
[null,null,null,null,null,{"$f":"IF(AND(F38=\"Die Konten sind richtig!\",F39=\"Die Beträge sind richtig!\"),\"Alles richtig!\",\"Es sind noch Fehler vorhanden!\")","v":"Es sind noch Fehler vorhanden!"}]
[5,"Soll","Konto","€","Haben","Konto","€"]
["Buchungssatz","",{"$f":"IF(B42=\"\",\"\",VLOOKUP(B42,Kontenplan!$A$4:$B$21,2))","v":""},null,"",{"$f":"IF(E42=\"\",\"\",VLOOKUP(E42,Kontenplan!$A$4:$B$21,2))","v":""}]
[]
["01.03.","Buchung im neuen Geschäftsjahr.",null,"Anteil neues Geschäftsjahr","Berechnungen",{"$f":"IF(AND(B48=\"4890\",B49=\"7510\",E48=\"2800\"),\"Die Konten sind richtig!\",\"Mindestens ein Konto ist falsch!\")","v":"Mindestens ein Konto ist falsch!"}]
[null,null,null,null,null,{"$f":"IF(AND(D48=416,D49=208,G48=624),\"Die Beträge sind richtig!\",\"Mindestens ein Betrag ist falsch!\")","v":"Mindestens ein Betrag ist falsch!"}]
[null,null,null,"Gesamtanteil",null,{"$f":"IF(AND(F44=\"Die Konten sind richtig!\",F45=\"Die Beträge sind richtig!\"),\"Alles richtig!\",\"Es sind noch Fehler vorhanden!\")","v":"Es sind noch Fehler vorhanden!"}]
[6,"Soll","Konto","€","Haben","Konto","€"]
["Buchungssatz","",{"$f":"IF(B48=\"\",\"\",VLOOKUP(B48,Kontenplan!$A$4:$B$21,2))","v":""},null,"",{"$f":"IF(E48=\"\",\"\",VLOOKUP(E48,Kontenplan!$A$4:$B$21,2))","v":""}]
[null,"",{"$f":"IF(B49=\"\",\"\",VLOOKUP(B49,Kontenplan!$A$4:$B$21,2))","v":""}]
[]
["Geschäfts- vorfall 4","Die Leasinggebühren für November bis Januar sind am 31.01. des nächsten Jahres zu überweisen, 780,00 €."]
[]
["31.12.","Buchung zum Jahresabschluss.",null,"Anteil alltes Geschäftsjahr","Berechnungen",{"$f":"IF(AND(B57=\"6710\",E57=\"4890\"),\"Die Konten sind richtig!\",\"Mindestens ein Konto ist falsch!\")","v":"Mindestens ein Konto ist falsch!"}]
[null,null,null,null,null,{"$f":"IF(AND(D57=520,G57=520),\"Die Beträge sind richtig!\",\"Mindestens ein Betrag ist falsch!\")","v":"Mindestens ein Betrag ist falsch!"}]
[null,null,null,null,null,{"$f":"IF(AND(F53=\"Die Konten sind richtig!\",F54=\"Die Beträge sind richtig!\"),\"Alles richtig!\",\"Es sind noch Fehler vorhanden!\")","v":"Es sind noch Fehler vorhanden!"}]
[7,"Soll","Konto","€","Haben","Konto","€"]
["Buchungssatz","",{"$f":"IF(B57=\"\",\"\",VLOOKUP(B57,Kontenplan!$A$4:$B$21,2))","v":""},null,"",{"$f":"IF(E57=\"\",\"\",VLOOKUP(E57,Kontenplan!$A$4:$B$21,2))","v":""}]
[]
["31.01.","Buchung im neuen Geschäftsjahr.",null,"Anteil neues Geschäftsjahr","Berechnungen",{"$f":"IF(AND(B63=\"4890\",B64=\"6710\",E63=\"2800\"),\"Die Konten sind richtig!\",\"Mindestens ein Konto ist falsch!\")","v":"Mindestens ein Konto ist falsch!"}]
[null,null,null,null,null,{"$f":"IF(AND(D63=520,D64=260,G63=780),\"Die Beträge sind richtig!\",\"Mindestens ein Betrag ist falsch!\")","v":"Mindestens ein Betrag ist falsch!"}]
[null,null,null,"Gesamtanteil",null,{"$f":"IF(AND(F59=\"Die Konten sind richtig!\",F60=\"Die Beträge sind richtig!\"),\"Alles richtig!\",\"Es sind noch Fehler vorhanden!\")","v":"Es sind noch Fehler vorhanden!"}]
[8,"Soll","Konto","€","Haben","Konto","€"]
["Buchungssatz","",{"$f":"IF(B63=\"\",\"\",VLOOKUP(B63,Kontenplan!$A$4:$B$21,2))","v":""},null,"",{"$f":"IF(E63=\"\",\"\",VLOOKUP(E63,Kontenplan!$A$4:$B$21,2))","v":""}]
[null,"",{"$f":"IF(B64=\"\",\"\",VLOOKUP(B64,Kontenplan!$A$4:$B$21,2))","v":""}]
[]
["Geschäfts- vorfall 5","Ein Schulder überweist die halbjährlich fälligen Zinsen (November - April) für einen Kredit in Höhe von 9.000,00 € am 1.5. des nächsten Jahres. Zinssatz 5%. "]
[]
["31.12.","Buchung zum Jahresabschluss.",null,"Anteil alltes Geschäftsjahr","Berechnungen",{"$f":"IF(AND(B72=\"2690\",E72=\"5710\"),\"Die Konten sind richtig!\",\"Mindestens ein Konto ist falsch!\")","v":"Mindestens ein Konto ist falsch!"}]
[null,null,null,null,null,{"$f":"IF(AND(D72=75,G72=75),\"Die Beträge sind richtig!\",\"Mindestens ein Betrag ist falsch!\")","v":"Mindestens ein Betrag ist falsch!"}]
[null,null,null,null,null,{"$f":"IF(AND(F68=\"Die Konten sind richtig!\",F69=\"Die Beträge sind richtig!\"),\"Alles richtig!\",\"Es sind noch Fehler vorhanden!\")","v":"Es sind noch Fehler vorhanden!"}]
[9,"Soll","Konto","€","Haben","Konto","€"]
["Buchungssatz","",{"$f":"IF(B72=\"\",\"\",VLOOKUP(B72,Kontenplan!$A$4:$B$21,2))","v":""},null,"",{"$f":"IF(E72=\"\",\"\",VLOOKUP(E72,Kontenplan!$A$4:$B$21,2))","v":""}]
[]
["01.05.","Buchung im neuen Geschäftsjahr.",null,"Anteil neues Geschäftsjahr","Berechnungen",{"$f":"IF(AND(B78=\"2800\",E78=\"5710\",E79=\"2690\"),\"Die Konten sind richtig!\",\"Mindestens ein Konto ist falsch!\")","v":"Mindestens ein Konto ist falsch!"}]
[null,null,null,null,null,{"$f":"IF(AND(D78=225,G78=150,G79=75),\"Die Beträge sind richtig!\",\"Mindestens ein Betrag ist falsch!\")","v":"Mindestens ein Betrag ist falsch!"}]
[null,null,null,"Gesamtanteil",null,{"$f":"IF(AND(F74=\"Die Konten sind richtig!\",F75=\"Die Beträge sind richtig!\"),\"Alles richtig!\",\"Es sind noch Fehler vorhanden!\")","v":"Es sind noch Fehler vorhanden!"}]
[10,"Soll","Konto","€","Haben","Konto","€"]
["Buchungssatz","",{"$f":"IF(B78=\"\",\"\",VLOOKUP(B78,Kontenplan!$A$4:$B$21,2))","v":""},null,"",{"$f":"IF(E78=\"\",\"\",VLOOKUP(E78,Kontenplan!$A$4:$B$21,2))","v":""}]
[null,null,{"$f":"IF(B79=\"\",\"\",VLOOKUP(B79,Kontenplan!$A$4:$B$21,2))","v":""},null,"",{"$f":"IF(E79=\"\",\"\",VLOOKUP(E79,Kontenplan!$A$4:$B$21,2))","v":""}]
[]
["Geschäfts- vorfall 6","Eine Rechnung für eine Instandhaltung im Dezember trifft erst am 5. Januar des nächsten Jahres ein, netto 480,00 €. (Vorsteuerverrechnung bei Rechnungseingang)"]
[]
["31.12.","Buchung zum Jahresabschluss.",null,null,480,{"$f":"IF(AND(B87=\"6160\",E87=\"4890\"),\"Die Konten sind richtig!\",\"Mindestens ein Konto ist falsch!\")","v":"Mindestens ein Konto ist falsch!"}]
[null,null,null,null,null,{"$f":"IF(AND(D87=E83,G87=E83),\"Die Beträge sind richtig!\",\"Mindestens ein Betrag ist falsch!\")","v":"Mindestens ein Betrag ist falsch!"}]
[null,null,null,null,null,{"$f":"IF(AND(F83=\"Die Konten sind richtig!\",F84=\"Die Beträge sind richtig!\"),\"Alles richtig!\",\"Es sind noch Fehler vorhanden!\")","v":"Es sind noch Fehler vorhanden!"}]
[11,"Soll","Konto","€","Haben","Konto","€"]
["Buchungssatz","",{"$f":"IF(B87=\"\",\"\",VLOOKUP(B87,Kontenplan!$A$4:$B$21,2))","v":""},null,"",{"$f":"IF(E87=\"\",\"\",VLOOKUP(E87,Kontenplan!$A$4:$B$21,2))","v":""}]
[]
["05.01.","Buchung im neuen Geschäftsjahr.",null,"netto",480,{"$f":"IF(AND(B93=\"4890\",B94=\"2600\",E93=\"4400\"),\"Die Konten sind richtig!\",\"Mindestens ein Konto ist falsch!\")","v":"Mindestens ein Konto ist falsch!"}]
[null,null,null,"UmSt",{"$f":"ROUND(E89*G4,2)","v":91.2},{"$f":"IF(AND(D93=E89,D94=E90,G93=E91),\"Die Beträge sind richtig!\",\"Mindestens ein Betrag ist falsch!\")","v":"Mindestens ein Betrag ist falsch!"}]
[null,null,null,"brutto",{"$f":"E89+E90","v":571.20000000000005},{"$f":"IF(AND(F89=\"Die Konten sind richtig!\",F90=\"Die Beträge sind richtig!\"),\"Alles richtig!\",\"Es sind noch Fehler vorhanden!\")","v":"Es sind noch Fehler vorhanden!"}]
[12,"Soll","Konto","€","Haben","Konto","€"]
["Buchungssatz","",{"$f":"IF(B93=\"\",\"\",VLOOKUP(B93,Kontenplan!$A$4:$B$21,2))","v":""},null,"",{"$f":"IF(E93=\"\",\"\",VLOOKUP(E93,Kontenplan!$A$4:$B$21,2))","v":""}]
[null,"",{"$f":"IF(B94=\"\",\"\",VLOOKUP(B94,Kontenplan!$A$4:$B$21,2))","v":""},null,null,{"$f":"IF(E94=\"\",\"\",VLOOKUP(E94,Kontenplan!$A$4:$B$21,2))","v":""}]
[]
["Geschäfts- vorfall 7","Eine nicht mehr genutzte Werkstatt wurde von uns an eine Rockband für monatlich 150,00 € vermietet. Die Miete für November und Dezember wird erst nach dem Neujahrskonzert am 3.1. des nächsten Jahres bar gezahlt."]
[]
["31.12.","Buchung zum Jahresabschluss.",null,"Gesamtmiete November und Dezember","Berechnungen",{"$f":"IF(AND(B102=\"2690\",E102=\"5400\"),\"Die Konten sind richtig!\",\"Mindestens ein Konto ist falsch!\")","v":"Mindestens ein Konto ist falsch!"}]
[null,null,null,null,null,{"$f":"IF(AND(D102=300,G102=300),\"Die Beträge sind richtig!\",\"Mindestens ein Betrag ist falsch!\")","v":"Mindestens ein Betrag ist falsch!"}]
[null,null,null,null,null,{"$f":"IF(AND(F98=\"Die Konten sind richtig!\",F99=\"Die Beträge sind richtig!\"),\"Alles richtig!\",\"Es sind noch Fehler vorhanden!\")","v":"Es sind noch Fehler vorhanden!"}]
[13,"Soll","Konto","€","Haben","Konto","€"]
["Buchungssatz","",{"$f":"IF(B102=\"\",\"\",VLOOKUP(B102,Kontenplan!$A$4:$B$21,2))","v":""},null,"",{"$f":"IF(E102=\"\",\"\",VLOOKUP(E102,Kontenplan!$A$4:$B$21,2))","v":""}]
[]
["03.01.","Buchung im neuen Geschäftsjahr.",null,"Gesamtmiete November und Dezember","Berechnungen",{"$f":"IF(AND(B108=\"2880\",E108=\"2690\"),\"Die Konten sind richtig!\",\"Mindestens ein Konto ist falsch!\")","v":"Mindestens ein Konto ist falsch!"}]
[null,null,null,null,null,{"$f":"IF(AND(D108=300,G108=300),\"Die Beträge sind richtig!\",\"Mindestens ein Betrag ist falsch!\")","v":"Mindestens ein Betrag ist falsch!"}]
[null,null,null,null,null,{"$f":"IF(AND(F104=\"Die Konten sind richtig!\",F105=\"Die Beträge sind richtig!\"),\"Alles richtig!\",\"Es sind noch Fehler vorhanden!\")","v":"Es sind noch Fehler vorhanden!"}]
[14,"Soll","Konto","€","Haben","Konto","€"]
["Buchungssatz","",{"$f":"IF(B108=\"\",\"\",VLOOKUP(B108,Kontenplan!$A$4:$B$21,2))","v":""},null,"",{"$f":"IF(E108=\"\",\"\",VLOOKUP(E108,Kontenplan!$A$4:$B$21,2))","v":""}]
[]
[]
["Geschäfts- vorfall 8","Unsere Bank zahlt Zinsen für September bis Februar erst am 28.2. Angelegtes Kapital: 60.000,00 €, Zinssatz: 6% "]
[]
["31.12.","Buchung zum Jahresabschluss.",null,"Zinsen für alltes Geschäftsjahr","Berechnungen",{"$f":"IF(AND(B117=\"2690\",E117=\"5710\"),\"Die Konten sind richtig!\",\"Mindestens ein Konto ist falsch!\")","v":"Mindestens ein Konto ist falsch!"}]
[null,null,null,null,null,{"$f":"IF(AND(D117=1200,G117=1200),\"Die Beträge sind richtig!\",\"Mindestens ein Betrag ist falsch!\")","v":"Mindestens ein Betrag ist falsch!"}]
[null,null,null,null,null,{"$f":"IF(AND(F113=\"Die Konten sind richtig!\",F114=\"Die Beträge sind richtig!\"),\"Alles richtig!\",\"Es sind noch Fehler vorhanden!\")","v":"Es sind noch Fehler vorhanden!"}]
[15,"Soll","Konto","€","Haben","Konto","€"]
["Buchungssatz","",{"$f":"IF(B117=\"\",\"\",VLOOKUP(B117,Kontenplan!$A$4:$B$21,2))","v":""},null,"",{"$f":"IF(E117=\"\",\"\",VLOOKUP(E117,Kontenplan!$A$4:$B$21,2))","v":""}]
[]
["28.02.","Buchung im neuen Geschäftsjahr.",null,"Zinsen neues Geschäftsjahr","Berechnungen",{"$f":"IF(AND(B123=\"2800\",E123=\"2690\",E124=\"5710\"),\"Die Konten sind richtig!\",\"Mindestens ein Konto ist falsch!\")","v":"Mindestens ein Konto ist falsch!"}]
[null,null,null,null,null,{"$f":"IF(AND(D123=1800,G123=1200,G124=600),\"Die Beträge sind richtig!\",\"Mindestens ein Betrag ist falsch!\")","v":"Mindestens ein Betrag ist falsch!"}]
[null,null,null,"Gesamtzinsen",null,{"$f":"IF(AND(F119=\"Die Konten sind richtig!\",F120=\"Die Beträge sind richtig!\"),\"Alles richtig!\",\"Es sind noch Fehler vorhanden!\")","v":"Es sind noch Fehler vorhanden!"}]
[16,"Soll","Konto","€","Haben","Konto","€"]
["Buchungssatz","",{"$f":"IF(B123=\"\",\"\",VLOOKUP(B123,Kontenplan!$A$4:$B$21,2))","v":""},null,"",{"$f":"IF(E123=\"\",\"\",VLOOKUP(E123,Kontenplan!$A$4:$B$21,2))","v":""}]
[null,null,{"$f":"IF(B124=\"\",\"\",VLOOKUP(B124,Kontenplan!$A$4:$B$21,2))","v":""},null,"",{"$f":"IF(E124=\"\",\"\",VLOOKUP(E124,Kontenplan!$A$4:$B$21,2))","v":""}]

{"sheet":"Kontenplan","index":2,"n_rows":21,"n_cols":2,"rows_kept":21,"cut":false,"hidden":false,"merged":[]}
[null,"Kontenplan"]
[]
["Nr.","Konto"]
["2400","Forderungen a.L.u.L."]
["2600","Vorsteuer"]
["2690","Sonstige Forderungen"]
["2800","Kreditinstitute/Bank"]
["2880","Kasse"]
["4200","Verbindlichkeiten g. Kreditinstituten"]
["4400","Verbindlichkeiten a.L.u.L."]
["4800","Umsatzsteuer"]
["4890","Sonstige Verbindlichkeiten"]
["5000","Umsatzerlöse"]
["5400","Mieterträge"]
["5710","Zinserträge"]
["6160","Fremdinstandhaltung"]
["6200","Löhne"]
["6300","Gehälter"]
["6710","Leasingaufwendungen"]
["7000","Betriebliche Steuern"]
["7510","Zinsaufwendungen"]